bitfinex/quotes_SOLUSD_20220210
["timestamp","ask_amount","ask_price","bid_price","bid_amount"]
[1644522014199,35.68396612,109.68,109.57,47.30371036]
[1644522014599,41.68396612,109.68,109.57,53.55371036]
[1644522014998,65.54646612,109.68,109.57,53.30371036]
[1644522015199,67.77768766,109.68,109.57,10.79]
[1644522015402,67.77768766,109.68,109.54,10.79]
[1644522015801,67.77768766,109.68,109.54,11.04]
[1644522016101,67.77768766,109.68,109.55,40.52695381]
[1644522016303,67.77768766,109.68,109.55,40.77695381]
[1644522016700,92.25618766,109.68,109.55,54.46725381]
[1644522017104,92.25618766,109.68,109.55,13.9403]
[1644522017403,92.25618766,109.68,109.55,0.25]
[1644522017604,92.25618766,109.68,109.53,0.25]
[1644522017800,92.25618766,109.68,109.52,17.04]
[1644522018002,92.25618766,109.68,109.52,16.79]
[1644522018300,184.12618766,109.68,109.53,39.15999364]
[1644522018700,184.12618766,109.68,109.53,52.85269364]
[1644522018902,92.25618766,109.68,109.53,52.85269364]
[1644522019102,106.04428766,109.68,109.53,52.85269364]
[1644522019304,92.25618766,109.68,109.53,59.10269364]
[1644522019500,92.25618766,109.68,109.53,83.49427108]
[1644522020103,86.25618766,109.68,109.53,83.49427108]
[1644522020301,86.25618766,109.68,109.53,77.49427108]
[1644522020902,86.25618766,109.68,109.53,63.89269364]
[1644522021205,92.25618766,109.68,109.53,63.89269364]
[1644522021903,59.54646612,109.68,109.54,1.7504649]
[1644522022108,35.68396612,109.68,109.58,13.6867]
[1644522022408,35.68396612,109.68,109.59,45.81397068]
[1644522022614,35.68396612,109.68,109.59,61.16601302]
[1644522022806,111.9,109.69,109.6,1.7504649]
[1644522023009,111.9,109.69,109.61,10.79]
[1644522023210,159.5164,109.74,109.61,10.79]
[1644522023408,159.5164,109.74,109.62,1.7504649]
[1644522023607,165.5164,109.74,109.65,13.6786]
[1644522023810,42.00912765,109.73,109.66,36.04212376]
[1644522024409,42.00912765,109.73,109.65,13.6786]
[1644522024608,42.00912765,109.73,109.65,13.9286]
[1644522025210,48.00912765,109.73,109.63,24.4711]
[1644522025407,48.00912765,109.73,109.65,0.25]
[1644522025612,48.00912765,109.73,109.63,13.6811]
[1644522025909,2.23122154,109.72,109.6,34.8362]
[1644522026109,26.71782154,109.72,109.62,0.25]
[1644522026310,44.1703,109.72,109.62,0.25]
[1644522026510,27.73397378,109.71,109.62,0.25]
[1644522026710,33.73397378,109.71,109.62,0.25]
[1644522026910,33.73397378,109.71,109.61,13.6837]
[1644522027111,33.73397378,109.71,109.59,10.79]
[1644522027314,44.52397378,109.71,109.55,13.60157744]
[1644522027512,71.38439532,109.71,109.56,10.79]
[1644522027710,85.06849532,109.71,109.57,13.6882]
[1644522027914,85.06849532,109.71,109.57,53.04680086]
[1644522028113,82.83727378,109.71,109.57,63.83680086]
[1644522028316,82.83727378,109.71,109.57,65.83726576]
[1644522028712,82.83727378,109.71,109.57,71.83726576]
[1644522028915,82.83727378,109.71,109.57,65.83726576]
[1644522030116,2.23122154,109.7,109.57,65.83726576]
[1644522030414,13.6893,109.67,109.57,65.83726576]
[1644522030614,34.84542294,109.66,109.57,24.7282]
[1644522030812,40.84542294,109.66,109.57,24.7282]
[1644522031012,40.84542294,109.66,109.57,13.9382]
[1644522031614,40.84542294,109.66,109.58,36.1126724]
[1644522031815,54.53532294,109.66,109.58,36.3626724]
[1644522032453,34.84542294,109.66,109.59,1.7504649]
[1644522032747,34.84542294,109.66,109.6,37.33206611]
[1644522032945,34.84542294,109.66,109.59,0.25]
[1644522033847,34.84542294,109.66,109.58,13.687]
[1644522034046,40.84542294,109.66,109.54,36.54110412]
[1644522034246,40.84542294,109.66,109.54,34.79063922]
[1644522034448,53.86664448,109.66,109.51,60.94386714]
[1644522034648,53.86664448,109.66,109.52,2.60070803]
[1644522035246,13.6934,109.63,109.54,13.6919]
[1644522035446,34.89767849,109.64,109.55,36.53448867]
[1644522035849,40.89767849,109.64,109.55,36.78448867]
[1644522036046,34.89767849,109.64,109.55,36.78448867]
[1644522036247,34.89767849,109.64,109.55,38.53495357]
[1644522036447,34.89767849,109.64,109.56,13.6905]
[1644522036645,40.89767849,109.64,109.53,1.7504649]
[1644522036849,23.571,109.63,109.53,1.7504649]
[1644522037247,29.571,109.63,109.53,1.7504649]
[1644522037449,34.84542294,109.62,109.53,36.4799523]
[1644522037746,34.84542294,109.62,109.53,56.4243523]
[1644522037948,22.9877,109.65,109.53,80.81592974]
[1644522038148,10.79,109.67,109.53,80.81592974]
[1644522038350,24.0866,109.68,109.54,11.69463638]
[1644522038547,24.4096,109.69,109.55,10.79]
[1644522038747,30.4096,109.69,109.55,40.81418924]
[1644522038947,36.78839238,109.68,109.56,40.95230398]
[1644522039150,36.78839238,109.68,109.59,37.8664609]
[1644522039351,36.78839238,109.68,109.59,38.1164609]
[1644522040148,42.78839238,109.68,109.59,38.1164609]
[1644522040350,56.47539238,109.68,109.59,13.9359]
[1644522040550,58.70661392,109.68,109.59,0.25]
[1644522040753,58.70661392,109.68,109.57,6.25]
[1644522041353,81.78081392,109.68,109.57,6.0]
[1644522041550,13.6937,109.64,109.55,6.0]
[1644522041751,36.13259765,109.63,109.54,45.86402869]
[1644522042151,42.13259765,109.63,109.52,58.18667077]
[1644522042350,42.13259765,109.63,109.53,2.60127773]
[1644522042752,55.82629765,109.63,109.54,13.6934]
[1644522043158,55.82629765,109.63,109.55,48.62679502]
[1644522043353,55.82629765,109.63,109.55,48.87679502]
[1644522047052,55.82629765,109.63,109.55,0.25]
[1644522047257,55.82629765,109.63,109.54,13.9434]
[1644522047555,55.82629765,109.63,109.54,0.25]
[1644522047753,55.82629765,109.63,109.52,24.4851]
[1644522047953,55.82629765,109.63,109.52,54.78057456]
[1644522048358,80.73979765,109.63,109.52,54.78057456]
[1644522049152,80.73979765,109.63,109.52,55.03057456]
[1644522052255,80.73979765,109.63,109.52,54.78057456]
[1644522053656,82.97101919,109.63,109.52,41.33547456]
[1644522053858,82.97101919,109.63,109.52,0.25]
[1644522054157,13.7002,109.59,109.52,0.25]
[1644522054355,13.7002,109.59,109.5,0.024]
[1644522054356,19.7002,109.59,109.5,0.024]
[1644522054857,33.61050378,109.58,109.5,0.024]
[1644522055256,39.61050378,109.58,109.5,0.024]
[1644522056056,38.61050378,109.58,109.5,0.024]
[1644522056759,13.7006,109.57,109.5,0.024]
[1644522056958,6.0,109.58,109.49,44.58154184]
[1644522057158,56.4487,109.62,109.51,1.75597077]
[1644522057362,6.0,109.6,109.51,2.00597077]
[1644522057762,13.6959,109.61,109.52,1.75597077]
[1644522057960,54.31628082,109.62,109.53,42.89042781]
[1644522058158,6.0,109.61,109.55,13.6926]
[1644522058362,48.31628082,109.62,109.56,41.03009774]
[1644522058759,45.9515,109.63,109.56,41.28009774]
[1644522058960,51.9515,109.63,109.56,41.28009774]
[1644522059159,23.9917,109.66,109.56,41.28009774]
[1644522059461,77.9371,109.66,109.56,54.97129774]
[1644522059658,39.90875772,109.65,109.56,54.97129774]
[1644522059860,45.90875772,109.65,109.56,54.97129774]
[1644522060259,71.9371,109.66,109.56,54.97129774]
[1644522060260,47.9454,109.66,109.56,54.97129774]
[1644522060464,47.86092154,109.69,109.57,1.75597077]
[1644522060681,111.9,109.7,109.59,13.687]
[1644522060868,49.5141,109.73,109.6,10.79]
[1644522061065,111.9,109.74,109.6,12.54597077]
[1644522061264,111.9,109.74,109.61,42.51634771]
[1644522061461,111.9,109.74,109.63,45.5929]
[1644522061664,111.9,109.74,109.64,10.79]
[1644522061863,111.9,109.74,109.64,17.04]
[1644522062064,111.9,109.74,109.64,18.79597077]
[1644522062265,147.36205545,109.74,109.67,13.6766]
[1644522062466,111.9,109.74,109.68,40.65885336]
[1644522062867,111.9,109.74,109.68,40.90885336]
[1644522063970,111.9,109.74,109.68,54.58465336]
[1644522064371,111.9,109.74,109.68,65.37465336]
[1644522065271,145.95798569,109.74,109.68,65.37465336]
[1644522065471,34.05798569,109.74,109.68,13.9258]
[1644522065671,34.05798569,109.74,109.68,0.25]
[1644522065892,34.05798569,109.74,109.66,30.7171]
[1644522066093,40.05798569,109.74,109.66,13.6771]
[1644522066292,10.79,109.73,109.56,13.9772]
[1644522066494,10.79,109.73,109.55,23.1953]
[1644522066495,58.5772,109.73,109.55,23.1953]
[1644522066695,26.74662154,109.72,109.55,23.1953]
[1644522066992,10.79,109.71,109.58,13.6873]
[1644522067395,19.02122154,109.71,109.58,13.6873]
[1644522067595,36.91633728,109.7,109.59,40.47484955]
[1644522067801,13.6876,109.68,109.59,40.47484955]
[1644522067996,34.05798569,109.67,109.59,40.47484955]
[1644522068195,34.05798569,109.67,109.54,10.79]
[1644522068395,40.05798569,109.67,109.56,13.6895]
[1644522068794,40.05798569,109.67,109.56,13.9395]
[1644522069193,40.05798569,109.67,109.57,48.0782766]
[1644522069395,53.74688569,109.67,109.57,48.0782766]
[1644522069696,53.74688569,109.67,109.57,48.3282766]
[1644522070796,55.97810723,109.67,109.57,48.3282766]
[1644522071997,55.97810723,109.67,109.56,13.6904]
[1644522072197,10.79,109.66,109.54,6.0]
[1644522072395,10.79,109.66,109.52,70.03037744]
[1644522072396,13.6932,109.63,109.52,45.6388]
[1644522072599,13.6932,109.63,109.51,10.79]
[1644522072795,21.92442154,109.63,109.5,54.198312]
[1644522072996,34.68511574,109.62,109.51,42.7508917]
[1644522073397,40.68511574,109.62,109.51,42.7508917]
[1644522073798,40.68511574,109.62,109.51,43.0008917]
[1644522074000,42.91633728,109.62,109.51,42.7508917]
[1644522074199,42.91633728,109.62,109.51,43.0008917]
[1644522074805,34.05798569,109.59,109.51,43.0008917]
[1644522075202,6.0,109.59,109.51,56.6971917]
[1644522075801,100.5669,109.63,109.51,56.6971917]
[1644522076205,42.78579537,109.62,109.51,56.6971917]
[1644522076805,48.78579537,109.62,109.51,56.6971917]
[1644522077007,25.06662154,109.65,109.52,10.79]
[1644522077207,10.79,109.69,109.55,13.6884]
[1644522077410,10.79,109.69,109.55,24.4784]
[1644522077606,361.5525,109.71,109.55,30.7284]
[1644522078106,13.6884,109.68,109.56,46.09291451]
[1644522078305,33.32186043,109.67,109.56,57.13291451]
[1644522078504,33.32186043,109.67,109.56,63.13291451]
[1644522078704,33.32186043,109.67,109.57,13.6883]
[1644522078905,13.6884,109.68,109.57,13.6883]
[1644522079105,13.6884,109.68,109.57,13.9383]
[1644522079305,22.8862,109.69,109.57,19.9383]
[1644522079504,13.6858,109.7,109.57,19.9383]
[1644522079505,121.1263,109.71,109.58,10.79]
[1644522079907,163.0249508,109.71,109.61,13.6819]
[1644522080109,89.5900508,109.71,109.62,44.77180774]
[1644522080309,23.5944,109.72,109.62,90.61740774]
[1644522080505,23.5944,109.72,109.63,10.79]
[1644522080906,23.5944,109.72,109.63,11.04]
[1644522081108,0.0299534,109.73,109.63,11.04]
[1644522081306,38.43206463,109.73,109.64,44.01602223]
[1644522081508,117.9299534,109.74,109.65,13.6786]
[1644522081708,0.0299534,109.75,109.65,15.43457077]
[1644522081908,0.0299534,109.76,109.66,10.79]
[1644522082108,0.0299534,109.78,109.66,12.54597077]
[1644522082308,0.0299534,109.78,109.66,44.50110376]
[1644522082511,27.63887081,109.78,109.67,47.79214585]
[1644522082709,27.63887081,109.78,109.68,10.79]
[1644522082909,27.63887081,109.78,109.69,46.5866125]
[1644522083109,27.60891741,109.78,109.69,71.0475125]
[1644522083310,27.60891741,109.78,109.69,71.2975125]
[1644522083511,117.9299534,109.79,109.69,71.2975125]
[1644522083914,2.23122154,109.78,109.69,24.4609]
[1644522084113,2.23122154,109.78,109.66,13.6769]
[1644522084313,0.0299534,109.77,109.66,13.9269]
[1644522084714,2.26117494,109.77,109.66,13.9269]
[1644522084914,47.89995993,109.76,109.67,48.13780971]
[1644522085315,53.89995993,109.76,109.67,48.38780971]
[1644522085716,67.57785993,109.76,109.67,48.38780971]
[1644522086117,67.57785993,109.76,109.67,0.25]
[1644522086317,2.23122154,109.75,109.62,10.79]
[1644522086518,111.9,109.73,109.56,134.9]
[1644522086818,10.79,109.72,109.56,10.79]
[1644522087018,13.05117494,109.72,109.57,22.84630118]
[1644522087216,23.07436304,109.71,109.58,39.09820006]
[1644522087417,33.86436304,109.71,109.58,39.09820006]
[1644522087620,20.8431415,109.71,109.6,13.6844]
[1644522087816,0.0299534,109.72,109.6,19.9344]
[1644522088020,0.0299534,109.73,109.6,26.48037077]
[1644522088215,0.0299534,109.73,109.6,32.48037077]
[1644522088416,0.0299534,109.73,109.6,30.7244]
[1644522088816,36.92341522,109.73,109.61,45.69837758]
[1644522089016,0.0299534,109.72,109.63,13.6816]
[1644522089216,56.60431522,109.73,109.64,47.71605086]
[1644522089515,56.57436182,109.73,109.64,47.71605086]
[1644522089715,56.57436182,109.73,109.64,47.96605086]
[1644522090318,56.57436182,109.73,109.64,47.71605086]
[1644522090716,181.49558336,109.73,109.61,13.6832]
[1644522090918,0.0299534,109.72,109.61,0.25]
[1644522091117,13.6857,109.69,109.61,0.25]
[1644522091316,19.6857,109.69,109.61,0.25]
[1644522091817,31.84963961,109.68,109.61,0.25]
[1644522092041,31.84963961,109.68,109.59,40.91537913]
[1644522092218,37.84963961,109.68,109.59,41.16537913]
[1644522092419,37.84963961,109.68,109.6,13.6853]
[1644522092617,37.84963961,109.68,109.61,44.48156097]
[1644522092917,37.84963961,109.68,109.61,44.73156097]
[1644522093121,6.0,109.68,109.61,44.73156097]
[1644522093318,30.0727,109.71,109.61,58.41576097]
[1644522094118,35.0545658,109.7,109.61,58.41576097]
[1644522094319,6.0,109.71,109.61,58.41576097]
[1644522094519,0.0299534,109.72,109.61,66.17173174]
[1644522094720,0.0299534,109.72,109.61,76.96173174]
[1644522095322,35.82662465,109.72,109.61,76.96173174]
[1644522095720,55.50862465,109.72,109.61,76.96173174]
[1644522095924,55.50862465,109.72,109.61,64.41576097]
[1644522096322,55.50862465,109.72,109.61,58.41576097]
[1644522102659,57.73984619,109.72,109.61,44.73156097]
[1644522103559,68.52984619,109.72,109.61,44.73156097]
[1644522103756,69.81538809,109.72,109.61,44.73156097]
[1644522104657,69.81538809,109.72,109.6,13.6859]
[1644522104862,69.81538809,109.72,109.55,1.29380323]
[1644522104863,0.45,109.71,109.55,1.29380323]
[1644522105057,13.6908,109.67,109.53,1.29380323]
[1644522105258,56.7331,109.66,109.52,1.29380323]
[1644522105457,58.96432154,109.66,109.52,1.29380323]
[1644522105660,32.94643018,109.65,109.53,41.82723118]
[1644522105859,38.94643018,109.65,109.54,13.6927]
[1644522106063,38.94643018,109.65,109.55,37.10452101]
[1644522106064,19.6899,109.65,109.55,37.10452101]
[1644522106660,6.0,109.65,109.55,37.10452101]
[1644522106861,51.9431,109.66,109.56,13.69]
[1644522107059,34.96542433,109.65,109.57,36.47870496]
[1644522107260,54.65552433,109.65,109.57,36.47870496]
[1644522107761,54.65552433,109.65,109.53,10.79]
[1644522107959,54.65552433,109.65,109.53,16.79]
[1644522108160,54.65552433,109.65,109.53,17.04]
[1644522108663,54.65552433,109.65,109.54,35.85694032]
[1644522108861,54.65552433,109.65,109.56,50.71703328]
[1644522109060,54.65552433,109.65,109.54,0.25]
[1644522109465,56.88674587,109.65,109.54,0.25]
[1644522110061,54.65552433,109.65,109.53,35.65370367]
[1644522110261,54.65552433,109.65,109.54,13.6934]
[1644522110469,54.65552433,109.65,109.55,37.0530393]
[1644522110864,54.65552433,109.65,109.55,37.3030393]
[1644522111966,56.88674587,109.65,109.55,37.3030393]
[1644522112373,56.88674587,109.65,109.53,13.6949]
[1644522112568,56.88674587,109.65,109.53,0.25]
[1644522112768,10.79,109.64,109.53,0.25]
[1644522112968,13.6959,109.61,109.53,0.25]
[1644522113371,19.6959,109.61,109.53,0.25]
[1644522113567,33.7776771,109.6,109.53,0.25]
[1644522113770,33.7776771,109.6,109.52,13.6962]
[1644522113771,39.7776771,109.6,109.52,13.6962]
[1644522113968,39.7776771,109.6,109.5,12.08380323]
[1644522113969,53.4740771,109.6,109.5,1.29380323]
[1644522114167,55.70529864,109.6,109.5,1.29380323]
[1644522114369,66.49529864,109.6,109.49,1.31780323]
[1644522114668,66.49529864,109.6,109.49,1.29380323]
[1644522114868,66.49529864,109.6,109.49,42.46894203]
[1644522115067,66.49529864,109.6,109.49,0.024]
[1644522115269,64.2640771,109.6,109.48,1.29380323]
[1644522115469,64.2640771,109.6,109.49,0.024]
[1644522115470,2.23122154,109.59,109.49,0.024]
[1644522115772,13.7036,109.56,109.49,0.024]
[1644522115971,13.7036,109.56,109.46,1.29380323]
[1644522116169,34.96542433,109.55,109.47,36.28230244]
[1644522116378,34.96542433,109.55,109.47,36.30630244]
[1644522116568,46.5941,109.57,109.47,36.30630244]
[1644522116769,46.5941,109.57,109.47,42.55630244]
[1644522116970,46.5941,109.57,109.47,69.32573429]
[1644522117169,10.79,109.61,109.48,22.8858882]
[1644522117469,6.0,109.61,109.51,13.6962]
[1644522117770,35.36816405,109.6,109.52,43.83617155]
[1644522119472,35.36816405,109.6,109.5,13.6985]
[1644522120471,49.06716405,109.6,109.49,0.024]
[1644522120670,68.08838559,109.6,109.49,0.024]
[1644522122171,68.08838559,109.6,109.49,38.93143546]
[1644522122372,68.08838559,109.6,109.47,0.024]
[1644522122573,65.85716405,109.6,109.47,0.024]
[1644522123374,65.85716405,109.6,109.47,37.61396098]
[1644522123573,65.85716405,109.6,109.48,0.024]
[1644522123774,65.85716405,109.6,109.47,13.7252]
[1644522123775,68.08838559,109.6,109.47,13.7252]
[1644522123974,68.08838559,109.6,109.46,0.25]
[1644522124276,68.08838559,109.6,109.47,0.024]
[1644522124576,68.08838559,109.6,109.45,0.024]
[1644522125177,68.08838559,109.6,109.46,13.7036]
[1644522125475,69.37392749,109.6,109.47,36.30910612]
[1644522125801,68.08838559,109.6,109.48,0.024]
[1644522126379,69.37392749,109.6,109.48,0.024]
[1644522126580,69.82392749,109.6,109.48,0.024]
[1644522127180,0.45,109.59,109.43,13.7304]
[1644522127379,13.7071,109.55,109.43,13.7304]
[1644522127582,10.79,109.54,109.43,13.7064]
[1644522127780,16.79,109.54,109.44,0.024]
[1644522127981,33.37493738,109.53,109.44,0.024]
[1644522128183,57.08533738,109.53,109.44,0.024]
[1644522128381,63.08533738,109.53,109.44,0.024]
[1644522128782,13.7081,109.52,109.44,0.024]
[1644522128982,13.7081,109.52,109.42,48.0978328]
[1644522128983,35.36816405,109.51,109.42,48.1218328]
[1644522129591,35.36816405,109.51,109.42,54.1218328]
[1644522130185,35.36816405,109.51,109.42,54.3718328]
[1644522130787,41.36816405,109.51,109.42,54.3718328]
[1644522130986,41.36816405,109.51,109.42,48.3718328]
[1644522131392,41.36816405,109.51,109.42,48.1218328]
[1644522132187,41.36816405,109.51,109.42,0.024]
[1644522132387,41.36816405,109.51,109.41,0.024]
[1644522132789,41.36816405,109.51,109.39,0.024]
[1644522133192,48.9133,109.5,109.39,0.024]
[1644522133409,59.7033,109.5,109.39,0.024]
[1644522133610,0.30390267,109.47,109.39,0.024]
[1644522133809,0.30390267,109.47,109.31,1.29380323]
[1644522133810,104.79,109.46,109.31,1.29380323]
[1644522134009,154.97492154,109.46,109.31,1.29380323]
[1644522134208,33.37493738,109.45,109.32,36.0198314]
[1644522134414,10.79,109.44,109.3,264.0]
[1644522134617,36.43992154,109.44,109.3,264.0]
[1644522134814,42.43992154,109.44,109.3,264.25]
[1644522135222,42.43992154,109.44,109.3,270.25]
[1644522135410,35.36816405,109.43,109.31,36.44009521]
[1644522135620,10.79,109.42,109.31,38.19606598]
[1644522135813,33.37493738,109.41,109.31,38.44606598]
[1644522136012,54.692,109.42,109.32,1.75597077]
[1644522136214,6.0,109.41,109.32,1.75597077]
[1644522136411,54.692,109.42,109.32,8.00597077]
[1644522136614,54.692,109.42,109.31,36.44009521]
[1644522136813,54.692,109.42,109.31,36.69009521]
[1644522137012,41.81908034,109.41,109.31,38.44619177]
[1644522137216,47.81908034,109.41,109.31,38.44619177]
[1644522137812,47.81908034,109.41,109.31,44.44619177]
[1644522138015,47.81908034,109.41,109.31,38.44619177]
[1644522138217,47.81908034,109.41,109.31,2.00609656]
[1644522138413,61.54168034,109.41,109.31,0.25]
[1644522138616,61.54168034,109.41,109.3,264.0]
[1644522138814,72.33168034,109.41,109.3,264.0]
[1644522139015,72.33168034,109.41,109.31,1.75609656]
[1644522139214,72.33168034,109.41,109.32,38.60945783]
[1644522139415,72.33168034,109.41,109.3,264.0]
[1644522139615,24.5126,109.41,109.3,264.0]
[1644522139817,10.79,109.43,109.33,1.75609656]
[1644522140215,10.79,109.47,109.33,21.69253402]
[1644522140616,39.73545697,109.46,109.34,40.2530204]
[1644522140817,13.7184,109.44,109.34,46.5030204]
[1644522141016,13.7184,109.44,109.31,10.79]
[1644522141216,19.7184,109.44,109.33,0.25]
[1644522141419,13.7184,109.44,109.33,0.25]
[1644522141618,23.8739,109.45,109.34,1.75609656]
[1644522141817,23.8739,109.45,109.34,8.00609656]
[1644522142017,29.00764446,109.44,109.35,42.61353017]
[1644522142219,29.00764446,109.44,109.35,6.0]
[1644522142422,29.00764446,109.44,109.34,15.47259656]
[1644522142620,35.00764446,109.44,109.32,12.54448174]
[1644522142819,35.00764446,109.44,109.32,6.25]
[1644522143219,35.00764446,109.44,109.32,13.9693]
[1644522143220,48.72594446,109.44,109.32,13.9693]
[1644522143421,23.4801,109.43,109.33,42.79457444]
[1644522143622,39.73545697,109.42,109.33,59.58457444]
[1644522143824,39.73545697,109.42,109.34,1.75448174]
[1644522144023,39.73545697,109.42,109.34,6.0]
[1644522144220,45.73545697,109.42,109.34,6.25]
[1644522144419,39.73545697,109.42,109.34,6.0]
[1644522144621,45.73545697,109.42,109.34,0.25]
[1644522144820,39.73545697,109.42,109.34,0.25]
[1644522145023,39.73545697,109.42,109.34,47.19633329]
[1644522145024,45.73545697,109.42,109.34,47.19633329]
[1644522145221,45.73545697,109.42,109.34,53.19633329]
[1644522145822,45.73545697,109.42,109.34,47.19633329]
[1644522146222,39.73545697,109.42,109.34,53.19633329]
[1644522146624,45.73545697,109.42,109.34,47.19633329]
[1644522147025,45.73545697,109.42,109.34,60.91413329]
[1644522147223,45.73545697,109.42,109.34,66.91413329]
[1644522147527,45.73545697,109.42,109.34,60.91413329]
[1644522147724,45.73545697,109.42,109.34,66.91413329]
[1644522147924,45.73545697,109.42,109.34,60.91413329]
[1644522148529,45.73545697,109.42,109.34,66.91413329]
[1644522148729,45.73545697,109.42,109.34,19.9678]
[1644522148928,45.73545697,109.42,109.34,6.0]
[1644522149328,45.73545697,109.42,109.33,0.024]
[1644522149528,70.13045697,109.42,109.33,0.024]
[1644522149827,70.13045697,109.42,109.33,38.89619606]
[1644522150229,70.13045697,109.42,109.33,39.14619606]
[1644522150428,39.73545697,109.42,109.34,12.54448174]
[1644522150629,39.73545697,109.42,109.35,43.31684294]
[1644522150831,24.576,109.47,109.35,51.32132468]
[1644522151028,24.576,109.47,109.36,1.75448174]
[1644522151230,30.576,109.47,109.36,2.02848174]
[1644522151631,30.576,109.47,109.36,21.74298174]
[1644522151830,48.0992,109.49,109.37,49.06223394]
[1644522152059,48.0992,109.49,109.37,50.83648937]
[1644522152231,54.0992,109.49,109.37,70.77292683]
[1644522152829,41.07618688,109.48,109.4,13.7079]
[1644522153029,41.07618688,109.48,109.39,10.79]
[1644522153233,47.07618688,109.48,109.39,0.25]
[1644522153430,47.07618688,109.48,109.39,0.024]
[1644522153632,47.07618688,109.48,109.38,11.064]
[1644522153833,86.88820842,109.48,109.38,0.024]
[1644522154033,97.67820842,109.48,109.36,0.024]
[1644522154236,97.67820842,109.48,109.37,0.024]
[1644522154438,97.67820842,109.48,109.35,46.83269826]
[1644522154633,97.67820842,109.48,109.36,0.024]
[1644522155435,97.67820842,109.48,109.34,0.024]
[1644522155841,97.67820842,109.48,109.35,13.717]
[1644522156035,97.67820842,109.48,109.36,0.024]
[1644522157738,111.21270842,109.48,109.36,0.024]
[1644522158137,97.67820842,109.48,109.36,13.7396]
[1644522158338,95.44698688,109.48,109.37,37.97374093]
[1644522158539,84.65698688,109.48,109.37,37.97374093]
[1644522158737,84.65698688,109.48,109.37,44.22374093]
[1644522159666,84.65698688,109.48,109.37,57.93744093]
[1644522159865,84.65698688,109.48,109.37,51.93744093]
[1644522160068,84.65698688,109.48,109.37,57.93744093]
[1644522160466,84.65698688,109.48,109.37,60.98147364]
[1644522161067,70.94388688,109.48,109.37,60.98147364]
[1644522161667,23.9763,109.49,109.38,12.08380323]
[1644522161868,1.2855419,109.53,109.41,13.7079]
[1644522162067,77.1708419,109.54,109.42,0.024]
[1644522162270,13.7072,109.53,109.42,0.024]
[1644522162467,19.7072,109.53,109.42,0.024]
[1644522162668,82.20867373,109.52,109.42,0.024]
[1644522162870,88.20867373,109.52,109.42,13.7325]
[1644522163071,88.20867373,109.52,109.43,46.85286689]
[1644522163272,88.20867373,109.52,109.43,46.87686689]
[1644522163873,33.0848277,109.5,109.43,46.87686689]
[1644522164074,33.0848277,109.5,109.42,0.024]
[1644522164272,39.0848277,109.5,109.41,6.274]
[1644522164569,39.0848277,109.5,109.41,0.024]
[1644522164972,52.7947277,109.5,109.41,0.024]
[1644522165174,35.65827373,109.48,109.39,1.29380323]
[1644522165376,35.65827373,109.48,109.39,0.024]
[1644522165572,47.612,109.47,109.37,1.31780323]
[1644522165774,53.612,109.47,109.36,1.31780323]
[1644522166174,13.7149,109.46,109.36,1.31780323]
[1644522166375,33.0848277,109.45,109.36,0.024]
[1644522166773,39.0848277,109.45,109.36,43.74879536]
[1644522167274,52.8011277,109.45,109.36,45.01859859]
[1644522167475,52.8011277,109.45,109.36,45.04259859]
[1644522167674,46.8011277,109.45,109.36,45.01859859]
[1644522167876,46.8011277,109.45,109.36,45.26859859]
[1644522168074,46.8011277,109.45,109.36,45.29259859]
[1644522169176,52.8011277,109.45,109.36,45.29259859]
[1644522169577,46.8011277,109.45,109.36,45.29259859]
[1644522169777,33.0848277,109.45,109.36,66.76485315]
[1644522169977,33.0848277,109.45,109.36,91.42131947]
[1644522170179,10.79,109.5,109.38,1.29380323]
[1644522170383,38.0308419,109.51,109.38,1.54380323]
[1644522170578,62.4920419,109.51,109.39,0.024]
[1644522170780,61.2065,109.51,109.39,0.024]
[1644522170979,67.2065,109.51,109.39,0.024]
[1644522171179,27.61569916,109.47,109.39,13.7355]
[1644522171379,27.61569916,109.47,109.4,0.024]
[1644522171578,27.61569916,109.47,109.4,46.01317401]
[1644522171776,27.61569916,109.47,109.4,46.26317401]
[1644522172577,33.61569916,109.47,109.4,46.26317401]
[1644522172879,33.61569916,109.47,109.4,46.01317401]
[1644522173980,47.4565,109.49,109.4,59.72447401]
[1644522174180,47.4565,109.49,109.4,62.7742318]